bitfinex/quotes_ETHUSD_20210401
["timestamp","ask_amount","ask_price","bid_price","bid_amount"]
[1617274382997,0.89183803,1929.8,1929.5,3.62395272]
[1617274383202,0.89183803,1929.8,1929.5,8.15927]
[1617274383399,0.89183803,1929.8,1929.5,7.76927]
[1617274383801,0.89183803,1929.8,1929.4,0.09406894]
[1617274384000,0.39,1929.7,1929.4,0.09406894]
[1617274384200,0.89183803,1929.8,1929.3,3.88491]
[1617274384404,0.89183803,1929.8,1929.2,0.52]
[1617274384600,0.89183803,1929.8,1929.3,0.09406894]
[1617274384799,0.38,1929.7,1929.3,0.09406894]
[1617274385426,0.39,1929.6,1929.3,0.09406894]
[1617274385627,0.39,1929.6,1929.1,0.09406894]
[1617274385829,0.39,1929.6,1929.0,0.09406894]
[1617274385830,0.4,1929.5,1929.0,0.09406894]
[1617274386033,0.687,1929.5,1928.7,0.09406894]
[1617274386236,0.687,1929.5,1928.7,0.50406894]
[1617274386237,0.39,1929.3,1928.7,0.50406894]
[1617274386427,0.39,1929.3,1928.8,3.23395272]
[1617274386631,0.287,1929.5,1929.0,0.41]
[1617274386824,0.287,1929.5,1929.0,0.4]
[1617274387225,0.28,1929.7,1929.0,0.4]
[1617274387429,0.28,1929.7,1929.2,0.39]
[1617274387848,0.67,1929.7,1929.2,0.39]
[1617274388452,0.41,1929.5,1929.1,0.09406894]
[1617274388653,0.41,1929.5,1929.2,7.77066]
[1617274388852,0.38,1929.8,1929.2,7.77066]
[1617274389051,0.38,1929.8,1929.2,8.16066]
[1617274389255,0.38,1929.8,1929.3,0.09406894]
[1617274389453,0.4,1929.7,1929.2,0.09406894]
[1617274389852,0.68,1929.7,1929.2,0.09406894]
[1617274390267,0.68,1929.7,1929.1,0.63406894]
[1617274390467,0.009314,1929.2,1929.1,0.54]
[1617274390869,0.009314,1929.2,1929.1,8.17137]
[1617274391470,0.009314,1929.2,1929.0,7.11954272]
[1617274391680,0.009314,1929.2,1929.1,29.75]
[1617274391681,4e-06,1929.2,1929.1,29.75]
[1617274391891,4e-06,1929.2,1929.1,49.9667]
[1617274392081,18.9286,1930.1,1929.1,44.9567]
[1617274392278,18.9286,1930.1,1929.5,7.76951]
[1617274392279,13.9186,1930.1,1929.5,7.76951]
[1617274392470,13.9186,1930.1,1929.5,16.25455338]
[1617274392678,22.3086,1930.1,1929.6,0.41]
[1617274392894,3.38,1930.0,1929.6,0.41]
[1617274393096,3.38,1930.0,1929.5,1.04847444]
[1617274393294,3.38,1930.0,1929.3,0.14]
[1617274393295,4.86,1930.0,1929.3,0.14]
[1617274393495,6.4133013,1929.9,1929.3,0.14]
[1617274393693,6.8133013,1929.9,1929.3,0.63406894]
[1617274394493,6.8133013,1929.9,1929.4,0.41]
[1617274394693,5.01,1929.7,1929.3,0.09406894]
[1617274394895,6.4133013,1929.6,1929.2,0.4]
[1617274395515,6.8233013,1929.6,1929.5,0.20070451]
[1617274395717,14.5964813,1929.6,1929.5,0.20070451]
[1617274396719,10.9,1929.5,1928.7,4.21914542]
[1617274396919,0.39,1929.3,1928.8,0.14]
[1617274397120,5.28963497,1929.3,1928.8,0.14]
[1617274397920,4.89963497,1929.3,1929.0,0.38]
[1617274398341,5.28963497,1929.3,1928.7,7.71549542]
[1617274398540,5.28963497,1929.3,1928.8,7.7726]
[1617274398741,5.28963497,1929.3,1928.7,9.3290392]
[1617274398943,5.56963497,1929.3,1928.7,9.3290392]
[1617274399143,4.89963497,1929.2,1928.7,9.3290392]
[1617274399345,4.89963497,1929.2,1928.7,12.6090392]
[1617274399540,5.29963497,1929.2,1928.7,12.2290392]
[1617274399947,5.29963497,1929.2,1928.7,20.0022392]
[1617274400340,5.29963497,1929.2,1928.7,16.7222392]
[1617274400541,5.29963497,1929.2,1929.1,0.13066283]
[1617274402969,4.89963497,1929.2,1929.1,0.13066283]
[1617274404194,4.89963497,1929.2,1929.1,0.52066283]
[1617274404395,4.89963497,1929.2,1929.1,0.13066283]
[1617274404995,4.89963497,1929.2,1929.1,0.51066283]
[1617274406422,4.89963497,1929.2,1929.1,0.13066283]
[1617274407424,4.89963497,1929.2,1929.1,0.53066283]
[1617274409267,4.89963497,1929.2,1929.1,8.30239283]
[1617274410270,4.89963497,1929.2,1929.1,8.20239283]
[1617274410868,4.89963497,1929.2,1929.1,10.90108042]
[1617274411068,4.89963497,1929.2,1929.1,13.76108042]
[1617274411468,4.89963497,1929.2,1929.1,10.66239283]
[1617274411871,4.89963497,1929.2,1929.1,14.14683663]
[1617274412073,14.0879,1930.0,1929.2,23.95]
[1617274412269,13.9186,1930.1,1929.7,0.38]
[1617274412470,5.57820688,1930.3,1929.9,0.38]
[1617274412471,5.18820688,1930.3,1929.9,0.38]
[1617274412669,5.18820688,1930.3,1929.6,0.14]
[1617274412670,5.46820688,1930.3,1929.6,0.14]
[1617274413069,7.77037,1930.1,1929.6,0.54]
[1617274413272,3.64395104,1930.2,1929.6,4.42483]
[1617274413469,4.84395104,1930.2,1929.6,0.4]
[1617274413670,5.01,1930.0,1929.6,0.4]
[1617274413895,1.59,1930.2,1929.5,0.39]
[1617274413896,5.50406894,1930.1,1929.5,0.39]
[1617274414096,0.28,1930.0,1929.5,0.39]
[1617274414296,5.29,1930.0,1929.5,0.39]
[1617274414495,14.66065,1930.0,1929.3,0.38]
[1617274414696,0.38,1929.8,1929.3,0.38]
[1617274415498,0.39,1929.7,1929.2,0.14]
[1617274415696,0.39,1929.7,1929.2,0.53]
[1617274415900,0.28,1929.8,1929.2,0.53]
[1617274416097,0.69,1929.8,1929.2,0.53]
[1617274416298,0.69,1929.8,1929.2,0.39]
[1617274416527,5.7,1929.8,1929.2,0.39]
[1617274416727,3.34,1929.7,1929.2,0.39]
[1617274417527,3.34,1929.7,1929.3,3.88577]
[1617274418128,3.34,1929.7,1929.6,0.20655974]
[1617274418330,3.74,1929.7,1929.6,0.20655974]
[1617274418532,11.51221,1929.7,1929.6,0.20655974]
[1617274419756,24.69386104,1929.7,1929.6,0.20655974]
[1617274419955,25.93416104,1929.7,1929.6,0.20655974]
[1617274420156,0.09406894,1929.6,1928.7,9.46805]
[1617274420356,0.38,1929.3,1928.7,9.46805]
[1617274420555,10.23855104,1929.3,1928.7,5.58148]
[1617274420756,3.25395104,1929.2,1928.7,5.58148]
[1617274420957,11.02797104,1929.2,1928.7,5.58148]
[1617274421161,0.38,1928.8,1928.7,5.18148]
[1617274421359,0.38,1928.8,1928.5,10.73176611]
[1617274421360,10.86475104,1928.8,1928.5,10.73176611]
[1617274421559,10.41,1928.6,1928.5,10.73176611]
[1617274421780,3.66395104,1928.6,1928.5,10.73176611]
[1617274422178,0.41,1928.6,1928.5,10.73176611]
[1617274422379,8.18645,1928.6,1928.5,10.73176611]
[1617274423181,8.18645,1928.6,1928.5,0.20575577]
[1617274423380,21.66670104,1928.6,1928.5,0.20575577]
[1617274424181,38.06670104,1928.6,1928.1,0.98]
[1617274424423,26.03858,1928.2,1928.1,0.98]
[1617274424622,15.22948,1928.2,1928.1,0.98]
[1617274424822,28.23948,1928.2,1928.1,0.98]
[1617274425025,19.82948,1928.2,1928.1,0.98]
[1617274425623,20.20948,1928.2,1928.1,0.98]
[1617274425823,28.20948,1928.2,1928.1,0.98]
[1617274426224,29.40948,1928.2,1928.1,0.98]
[1617274426426,28.20948,1928.2,1928.1,0.98]
[1617274426823,27.82948,1928.2,1928.1,0.98]
[1617274427025,28.21948,1928.2,1928.1,0.98]
[1617274427625,28.21188185,1928.2,1928.1,0.98]
[1617274427828,19.82948,1928.2,1928.1,0.98]
[1617274428024,19.82948,1928.2,1928.1,1.12786824]
[1617274428225,20.20948,1928.2,1928.1,1.12786824]
[1617274429224,28.20948,1928.2,1928.1,1.12786824]
[1617274429651,20.10948,1928.2,1928.1,1.12786824]
[1617274429853,14.71948,1928.2,1928.1,1.12786824]
[1617274430053,7.67858,1928.2,1928.1,1.12786824]
[1617274431051,0.4,1928.3,1928.1,1.12786824]
[1617274431253,5.01,1928.2,1928.1,1.12786824]
[1617274431852,14.08,1928.2,1928.1,1.12786824]
[1617274432055,22.4435,1928.2,1928.1,1.12786824]
[1617274432281,27.4535,1928.2,1928.1,1.12786824]
[1617274432484,35.4535,1928.2,1928.1,1.12786824]
[1617274432878,21.7535,1928.2,1928.1,1.12786824]
[1617274433876,13.7535,1928.2,1928.1,1.12786824]
[1617274434080,5.01,1928.2,1928.1,1.12786824]
[1617274434680,16.65395104,1928.2,1928.1,1.12786824]
[1617274435701,13.4,1928.2,1928.1,1.12786824]
[1617274435901,22.05,1928.2,1928.1,1.12786824]
[1617274436100,5.4,1928.2,1928.1,1.12786824]
[1617274436501,13.01,1928.2,1928.1,1.12786824]
[1617274436702,13.01,1928.2,1928.1,1.52786824]
[1617274436905,0.09406894,1928.7,1928.1,1.52786824]
[1617274437306,3.58,1928.6,1928.1,1.52786824]
[1617274437525,0.09406894,1928.5,1928.1,1.38]
[1617274437924,7.777,1928.6,1928.2,0.41]
[1617274438125,12.787,1928.6,1928.4,0.15402103]
[1617274438527,7.777,1928.6,1928.4,0.15402103]
[1617274438926,0.09406894,1928.7,1928.4,0.55402103]
[1617274439128,0.09406894,1928.7,1928.5,0.38]
[1617274439329,27.0557,1928.8,1928.6,0.4]
[1617274439330,14.4629,1928.8,1928.6,0.4]
[1617274439531,0.09406894,1929.0,1928.6,0.4]
[1617274439728,5.1888794,1929.1,1928.6,0.4]
[1617274439729,5.4688794,1929.1,1928.6,0.4]
[1617274440376,5.01,1928.9,1928.6,0.4]
[1617274440772,5.4688794,1929.1,1928.8,0.38]
[1617274440976,5.1888794,1929.1,1928.9,0.39]
[1617274441374,14.0057,1929.3,1928.9,0.39]
[1617274441577,27.4691,1929.8,1929.2,0.4]
[1617274441775,27.4691,1929.8,1929.2,6.4638]
[1617274441776,0.4,1929.7,1929.2,6.4638]
[1617274441974,3.98,1929.7,1929.2,6.4638]
[1617274442373,0.38,1929.5,1929.2,6.0638]
[1617274442975,8.16,1929.6,1929.2,6.0638]
[1617274443175,8.16,1929.6,1929.4,0.16217583]
[1617274443376,25.42156097,1929.5,1929.4,0.16217583]
[1617274443579,23.28324,1929.5,1929.4,0.16217583]
[1617274443777,23.28324,1929.5,1928.2,5.18248]
[1617274443778,0.392,1929.2,1928.2,5.18248]
[1617274443976,0.39,1929.0,1928.3,3.25395104]
[1617274444176,0.308,1928.9,1928.2,5.18248]
[1617274444376,0.308,1928.9,1928.4,0.41]
[1617274444575,0.308,1928.9,1928.6,0.39]
[1617274445599,0.48406894,1929.1,1928.6,0.39]
[1617274445799,0.76406894,1929.1,1928.6,0.39]
[1617274445999,0.37406894,1929.1,1928.7,0.38]
[1617274446200,0.37406894,1929.1,1928.8,0.39]
[1617274446201,0.09406894,1929.1,1928.8,0.39]
[1617274446400,7.77433,1929.2,1928.8,0.39]
[1617274446601,0.09406894,1929.3,1928.9,0.41]
[1617274446799,17.7796,1929.4,1928.9,0.41]
[1617274447000,3.58,1929.2,1928.9,0.41]
[1617274447199,3.58,1929.2,1928.7,3.88686]
[1617274447402,3.58,1929.2,1928.8,0.4]
[1617274447599,7.86756894,1929.3,1928.8,0.4]
[1617274447800,0.41,1929.2,1928.7,3.88686]
[1617274448028,0.41,1929.2,1928.7,4.27686]
[1617274448229,5.7,1929.2,1928.7,4.27686]
[1617274448428,0.39,1929.1,1928.5,0.14]
[1617274448628,0.39,1929.1,1928.5,0.53]
[1617274448829,0.09406894,1929.2,1928.8,0.38]
[1617274449028,5.39,1929.4,1929.0,0.39]
[1617274449229,5.01,1929.4,1929.0,0.39]
[1617274450032,7.86700894,1929.5,1929.0,0.38]
[1617274450230,14.1643,1929.6,1929.0,3.31117901]
[1617274450430,14.70526894,1929.7,1929.2,0.39]
[1617274450659,14.6112,1929.7,1929.2,0.39]
[1617274451060,3.98,1929.6,1929.1,4.02576]
[1617274451258,3.98,1929.6,1928.9,0.4]
[1617274451259,0.38,1929.5,1928.9,0.4]
[1617274451460,0.38,1929.2,1928.7,5.18126]
[1617274452089,8.15391,1929.2,1928.7,5.18126]
[1617274452488,7.77391,1929.2,1928.8,0.39]
[1617274452690,0.28,1929.3,1928.8,0.39]
[1617274452889,5.49406894,1929.6,1928.9,0.4]
[1617274453089,0.28,1929.5,1929.3,0.16096651]
[1617274457306,5.42,1929.6,1929.3,0.16096651]
[1617274457914,13.1315,1929.9,1929.3,0.56096651]
[1617274458112,8.26495894,1930.1,1929.7,0.38]
[1617274458113,7.86495894,1930.1,1929.7,0.38]
[1617274458314,7.86495894,1930.1,1929.7,8.7067]
[1617274458315,3.67856197,1930.0,1929.7,8.7067]
[1617274458528,7.77089,1930.1,1929.7,8.7067]
[1617274458730,0.406048,1930.3,1929.7,8.7067]
[1617274458928,0.406048,1930.3,1929.7,8.3267]
[1617274458929,0.4,1930.2,1929.7,8.3267]
[1617274459929,0.68,1930.2,1929.7,8.3267]
[1617274460534,0.39,1930.0,1929.7,8.3267]
[1617274460731,0.4,1929.9,1929.7,8.3267]
[1617274461357,0.28,1930.2,1929.7,8.3267]
[1617274461558,0.39,1930.1,1929.7,8.3267]
[1617274463164,0.39,1930.1,1930.0,0.19786522]
[1617274463362,13.17066,1930.1,1930.0,0.19786522]
[1617274463561,8.16066,1930.1,1930.0,0.19786522]
[1617274464178,16.16066,1930.1,1930.0,0.19786522]
[1617274466602,8.16066,1930.1,1930.0,0.19786522]
[1617274467007,7.77066,1930.1,1930.0,0.19786522]
[1617274467208,15.37087,1930.2,1930.0,6.76616522]
[1617274467412,5.01,1930.2,1930.0,6.76616522]
[1617274467608,5.01,1930.2,1930.0,7.16616522]
[1617274467810,5.026048,1930.3,1930.0,6.76616522]
[1617274468209,5.01,1930.2,1930.0,6.76616522]
[1617274468609,5.01,1930.1,1930.0,6.76616522]
[1617274468810,5.01,1930.2,1930.0,6.76616522]
[1617274469055,12.77951,1930.2,1930.0,6.76616522]
[1617274469456,13.15951,1930.2,1930.0,6.76616522]
[1617274470856,11.21,1930.1,1930.0,6.76616522]
[1617274471059,5.01,1930.1,1930.0,6.76616522]
[1617274472261,12.78069,1930.1,1930.0,6.76616522]
[1617274473261,24.42464104,1930.1,1930.0,0.19786522]
[1617274473663,42.62464104,1930.1,1930.0,0.19786522]
[1617274474058,42.62464104,1930.1,1929.1,11.69883229]
[1617274474059,37.85395104,1930.1,1929.1,11.69883229]
[1617274474283,0.39,1929.4,1929.1,11.69883229]
[1617274474481,7.77356,1929.3,1929.1,11.69883229]
[1617274474680,5.01,1929.2,1929.1,11.69883229]
[1617274475683,12.78381,1929.2,1929.1,11.69883229]
[1617274477315,13.19381,1929.2,1929.1,11.69883229]
[1617274477725,21.19381,1929.2,1929.1,11.69883229]
[1617274477914,16.78381,1929.2,1929.1,11.69883229]
[1617274478313,16.78381,1929.2,1929.1,0.11021308]
[1617274479531,12.78381,1929.2,1929.1,0.11021308]
[1617274481637,13.19381,1929.2,1929.1,0.11021308]
[1617274487092,30.03421,1929.2,1929.1,0.11021308]
[1617274487512,43.13421,1929.2,1928.2,0.39]
[1617274487714,43.13421,1929.2,1928.1,12.00230624]
[1617274487715,0.41,1928.7,1928.1,12.38230624]
[1617274487915,0.41,1928.7,1928.1,12.52230624]
[1617274487916,7.77752,1928.4,1928.1,12.52230624]
[1617274488313,7.77752,1928.4,1928.3,0.14210063]
[1617274488913,8.18752,1928.4,1928.3,0.14210063]
[1617274489114,7.77752,1928.4,1928.3,0.14210063]
[1617274489517,8.18752,1928.4,1928.3,0.14210063]
[1617274489717,19.46514206,1928.4,1928.3,0.14210063]
[1617274490336,31.11514206,1928.4,1928.3,0.14210063]
[1617274490937,32.31514206,1928.4,1928.3,0.14210063]
[1617274491338,32.31514206,1928.4,1928.1,12.00230624]
[1617274491339,33.21714206,1928.4,1928.1,12.00230624]
[1617274491540,16.99,1928.2,1928.1,12.00230624]
[1617274491736,24.99,1928.2,1928.1,12.00230624]
[1617274492146,15.76297,1928.2,1928.1,12.00230624]
[1617274492562,15.38297,1928.2,1928.1,12.00230624]
[1617274492961,5.01,1928.2,1928.1,12.00230624]
[1617274493361,5.01,1928.2,1928.1,12.182965]
[1617274493962,17.734,1928.6,1928.1,1.17180776]
[1617274494161,17.734,1928.6,1928.2,0.39]
[1617274494362,12.724,1928.6,1928.2,0.39]
[1617274494764,12.724,1928.6,1928.1,0.991149]
[1617274494962,7.77753,1928.4,1928.1,0.991149]
[1617274495188,10.37004,1928.5,1928.1,0.991149]
[1617274495189,5.89762206,1928.3,1928.1,0.991149]
[1617274495587,5.01,1928.2,1928.1,0.991149]
[1617274495988,8.28762206,1928.2,1928.1,0.991149]
[1617274496388,5.01,1928.2,1928.1,0.991149]
[1617274496788,12.78859,1928.2,1928.1,0.991149]
[1617274497193,7.77859,1928.2,1928.1,0.991149]
[1617274497392,5.01,1928.4,1928.1,0.991149]
[1617274498390,5.01,1928.4,1928.3,0.19748158]
[1617274498591,5.42,1928.4,1928.3,0.19748158]
[1617274499190,5.01,1928.4,1928.3,0.19748158]
[1617274499391,12.78721,1928.4,1928.3,0.19748158]
[1617274499591,5.01,1928.4,1928.3,0.19748158]
[1617274499791,5.01,1928.4,1928.3,0.60748158]
[1617274499996,12.724,1928.6,1928.3,0.60748158]
[1617274500193,12.724,1928.6,1928.4,0.38]
[1617274500598,7.7757,1928.9,1928.5,0.39]
[1617274500796,7.7757,1928.9,1928.5,0.53]
[1617274500999,0.09406894,1929.0,1928.5,0.53]
[1617274501196,29.394,1929.1,1928.7,0.41]
[1617274501399,29.394,1929.1,1928.7,8.1702]
[1617274501596,11.35517,1929.0,1928.7,8.1702]
[1617274501796,7.77517,1929.0,1928.7,7.7602]
[1617274501997,8.18517,1929.0,1928.7,7.7602]
[1617274502798,7.77517,1929.0,1928.7,7.7602]
[1617274503400,7.77517,1929.0,1928.9,0.20019628]
[1617274506608,24.44279206,1929.0,1928.9,0.20019628]
[1617274507808,24.06279206,1929.0,1928.9,0.20019628]
[1617274508206,24.45279206,1929.0,1928.9,0.20019628]
[1617274508837,24.45279206,1929.0,1928.1,1.371149]
[1617274508838,0.09406894,1928.9,1928.1,1.371149]
[1617274509039,1.0,1928.4,1928.1,1.371149]
[1617274509237,1.0,1928.4,1928.1,0.991149]
[1617274509839,5.01,1928.3,1928.1,0.991149]
[1617274510040,12.78876,1928.3,1928.1,0.991149]
[1617274510242,20.78876,1928.3,1928.1,0.991149]
[1617274510442,13.01,1928.3,1928.1,0.981835]
[1617274510641,11.37168,1928.4,1928.1,0.981835]
[1617274510842,11.37168,1928.4,1928.1,8.302435]
[1617274511061,11.37168,1928.4,1928.1,11.302435]
[1617274511261,7.77879,1928.2,1928.1,11.302435]
[1617274511661,7.77879,1928.2,1928.1,14.98005706]
[1617274511861,7.77879,1928.2,1928.1,11.702435]
[1617274512461,7.77879,1928.2,1928.1,11.302435]
[1617274512661,15.77879,1928.2,1928.1,8.302435]
[1617274513464,7.77879,1928.2,1928.1,8.82112977]
[1617274513687,11.37168,1928.4,1928.1,12.09875183]
[1617274513889,11.37168,1928.4,1928.3,0.4]
[1617274514088,1.0,1928.4,1928.3,0.4]
[1617274514487,1.0,1928.4,1928.1,8.42112977]
[1617274514688,1.0,1928.4,1928.1,8.83112977]
[1617274514888,8.77701,1928.4,1928.1,8.83112977]
[1617274515693,8.77701,1928.4,1928.1,8.42112977]
[1617274515694,0.38,1928.3,1928.1,8.42112977]
[1617274516090,16.31,1928.2,1928.1,8.42112977]
[1617274516311,41.8740394,1928.2,1928.1,7.42112977]
[1617274516512,33.2240394,1928.2,1928.1,7.42112977]
[1617274516712,34.4240394,1928.2,1928.1,0.11869477]
[1617274517114,34.4240394,1928.2,1927.1,1.0]
[1617274517115,43.3740394,1928.2,1927.1,1.0]
[1617274517314,0.38,1927.9,1927.3,0.41]
[1617274517515,7.78147,1927.8,1927.3,0.41]
[1617274517714,16.71,1927.7,1927.3,0.41]
[1617274518317,5.01,1927.7,1927.3,0.59071651]
[1617274518513,5.01,1927.7,1927.3,0.18071651]
[1617274518736,10.1988794,1927.7,1927.3,0.18071651]
[1617274518944,18.1988794,1927.7,1927.3,0.18071651]
[1617274519145,25.9803494,1927.7,1927.3,0.18071651]
[1617274519343,34.9480494,1927.7,1927.3,0.18071651]
[1617274519744,35.3380494,1927.7,1927.3,0.18071651]
[1617274520744,36.5380494,1927.7,1927.3,0.18071651]
[1617274520948,19.6,1927.6,1927.3,0.18071651]
[1617274521144,2.46541,1927.5,1927.3,0.18071651]
[1617274521345,8.59,1927.4,1927.3,0.18071651]
[1617274521558,5.01,1927.4,1927.3,0.18071651]
[1617274523758,5.41,1927.4,1927.3,0.18071651]
[1617274524189,8.5686,1927.4,1927.3,0.18071651]
[1617274524786,8.1686,1927.4,1927.3,0.18071651]
[1617274524987,5.01,1927.4,1927.3,0.18071651]
[1617274525787,13.3801,1927.4,1927.3,0.18071651]
[1617274525987,13.3501,1927.4,1927.3,0.18071651]
[1617274528409,8.3701,1927.4,1927.3,0.18071651]
[1617274529209,5.65,1927.3,1927.1,0.18071651]
[1617274529434,7.78263,1927.3,1927.1,0.18071651]
[1617274529833,7.78263,1927.3,1927.2,0.39]
[1617274530032,10.47145894,1927.6,1927.2,0.39]
[1617274531034,10.47145894,1927.6,1927.5,0.1487208]
[1617274532458,10.87145894,1927.6,1927.5,0.1487208]
[1617274532658,18.87145894,1927.6,1927.5,0.1487208]
[1617274534063,18.47145894,1927.6,1927.5,0.1487208]
[1617274534461,10.37739,1927.6,1927.5,0.1487208]
[1617274534684,18.77739,1927.6,1927.5,0.1487208]
[1617274536086,18.37739,1927.6,1927.5,0.1487208]
[1617274537308,10.37739,1927.6,1927.5,0.1487208]
[1617274537508,18.22349,1927.6,1927.5,0.1487208]
[1617274539315,26.22349,1927.6,1927.5,0.1487208]
[1617274542762,15.8461,1927.6,1927.5,0.1487208]
[1617274543565,7.8461,1927.6,1927.5,0.5487208]
[1617274543766,0.09406894,1927.8,1927.5,0.5487208]
[1617274543970,34.3840794,1928.1,1927.7,0.41]
[1617274543971,0.09406894,1928.0,1927.7,0.41]
[1617274544165,35.7512394,1928.1,1927.7,0.41]
[1617274544568,27.7512394,1928.1,1927.7,0.41]
[1617274544764,12.9687394,1928.1,1927.7,0.41]
[1617274544964,12.9687394,1928.1,1927.9,0.39]
[1617274546206,5.1888794,1928.1,1927.9,0.39]
[1617274546606,3.2565086,1928.0,1927.8,5.01]
[1617274546808,3.2565086,1928.0,1927.4,5.01]
[1617274546809,3.6465086,1928.0,1927.4,5.01]
[1617274547006,3.6465086,1928.0,1927.4,5.42]
[1617274547208,0.39,1928.0,1927.4,5.42]
[1617274547607,0.48406894,1928.0,1927.4,5.42]
[1617274547813,11.52053754,1928.0,1927.4,5.42]
[1617274548012,3.58,1927.9,1927.4,5.42]
[1617274548211,2.7550027,1927.9,1927.4,5.42]
[1617274548412,0.39,1927.8,1927.4,5.01]
[1617274548613,0.39,1927.8,1927.2,5.41]
[1617274548814,7.78193,1927.5,1927.4,0.16569451]
[1617274549214,0.322,1927.7,1927.4,0.16569451]
[1617274550015,10.5814,1927.6,1927.4,0.16569451]
[1617274550215,2.8,1927.6,1927.4,0.16569451]
[1617274550433,0.341952,1927.7,1927.4,0.16569451]
[1617274550635,8.341952,1927.7,1927.4,0.16569451]
[1617274551035,0.341952,1927.7,1927.4,0.16569451]
[1617274551835,7.78161,1927.6,1927.4,0.16569451]
[1617274552636,0.341952,1927.7,1927.4,0.16569451]
[1617274553062,8.123172,1927.7,1927.4,0.16569451]
[1617274555584,2.82,1927.6,1927.4,0.16569451]
[1617274556585,2.82,1927.6,1927.4,0.15708666]
[1617274557188,13.48156,1927.5,1927.4,0.15708666]
[1617274557390,7.78156,1927.5,1927.4,0.15708666]
[1617274561844,0.019952,1927.7,1927.4,0.15708666]
[1617274562040,0.019952,1927.7,1927.4,0.10708666]
[1617274562641,0.39,1927.6,1927.4,0.10708666]
[1617274563041,8.17111,1927.6,1927.4,0.10708666]
[1617274563242,7.78111,1927.6,1927.4,0.10708666]
[1617274564062,12.04,1927.5,1927.2,1.10344466]
[1617274564260,0.38,1927.4,1927.2,1.10344466]
[1617274565260,0.019952,1927.7,1927.2,1.10344466]
[1617274565462,0.39,1927.6,1927.2,6.11344466]
[1617274565662,0.39,1927.6,1927.2,1.08349266]
[1617274566084,2.4652312,1927.6,1927.4,0.12331266]
[1617274566286,7.78236,1927.5,1927.4,0.12331266]
[1617274566884,8.17236,1927.5,1927.4,0.12331266]
[1617274567884,11.45159474,1927.5,1927.4,0.12331266]
[1617274568086,8.17236,1927.5,1927.4,0.12331266]
[1617274568282,16.37236,1927.5,1927.4,0.07331266]
[1617274568484,16.92236,1927.5,1927.4,0.07331266]
[1617274568714,7.78251,1927.3,1927.1,0.18071651]
[1617274568918,8.17251,1927.3,1927.1,0.18071651]
[1617274569121,16.17251,1927.3,1927.1,0.18071651]
[1617274569512,8.17251,1927.3,1927.1,0.18071651]
[1617274569724,7.78251,1927.3,1927.1,0.18071651]
[1617274570914,16.03602,1927.5,1927.1,0.18071651]
[1617274571115,16.03602,1927.5,1927.2,0.13706269]
[1617274571538,16.254,1927.5,1927.2,0.13706269]
[1617274571738,0.39,1927.3,1927.2,0.13706269]
[1617274571937,14.34,1927.3,1927.2,0.13706269]
[1617274572138,16.1726,1927.3,1927.2,0.13706269]
[1617274572544,8.1726,1927.3,1927.2,0.13706269]
[1617274572938,7.7826,1927.3,1927.2,0.13706269]
[1617274573342,0.1622208,1927.0,1926.8,3.89118]
[1617274573539,0.1622208,1927.0,1926.9,0.14]
[1617274573738,0.1622208,1927.0,1926.9,5.15]
[1617274574183,0.1622208,1927.0,1926.9,0.14]
[1617274574582,0.1622208,1927.0,1926.8,3.89118]
[1617274574789,0.1622208,1927.0,1926.8,6.83118]
[1617274575582,0.1622208,1927.0,1926.8,2.94]
[1617274575781,0.1622208,1927.0,1926.7,5.41]
[1617274576182,0.1622208,1927.0,1926.9,0.12600711]
[1617274580210,0.1622208,1927.0,1926.9,5.13600711]
[1617274580609,0.1622208,1927.0,1926.9,0.51600711]
[1617274580810,0.1622208,1927.0,1926.9,5.52600711]
[1617274581610,0.1622208,1927.0,1926.9,13.30819711]
[1617274583138,0.1622208,1927.0,1926.9,5.52600711]
[1617274583339,0.1622208,1927.0,1926.9,0.12600711]
[1617274590232,0.1622208,1927.0,1926.9,7.90859711]
[1617274592234,0.1622208,1927.0,1926.9,0.12600711]
[1617274593649,3.26667,1927.4,1926.9,0.53600711]
[1617274593850,0.287,1927.3,1926.9,0.53600711]
[1617274594053,0.667,1927.3,1926.9,0.12600711]
[1617274594447,7.78349,1927.2,1926.9,0.12600711]
[1617274595260,0.667,1927.3,1926.9,0.12600711]
[1617274595461,8.45003,1927.3,1926.9,0.12600711]
[1617274595862,8.07003,1927.3,1927.0,0.41]
[1617274596462,8.07012,1927.3,1927.0,4.3014]
[1617274596862,8.47012,1927.3,1927.0,3.8914]
[1617274597687,7.78341,1927.2,1927.0,3.8914]
[1617274597887,7.68341,1927.2,1927.0,3.8914]
[1617274598087,0.287,1927.3,1927.0,3.8914]
[1617274598686,8.06993,1927.3,1927.0,3.8914]
[1617274600086,8.44993,1927.3,1927.0,3.8914]
[1617274600715,0.287,1927.3,1927.0,3.8914]
[1617274600911,0.287,1927.3,1927.1,0.41]
[1617274601515,0.4,1927.2,1927.0,3.8914]
[1617274601713,3.26667,1927.1,1927.0,3.8914]
[1617274601916,0.4,1927.2,1927.0,3.8914]
[1617274602114,0.287,1927.3,1927.0,3.8914]
[1617274602939,0.287,1927.3,1927.0,4.2814]
[1617274603545,10.37726,1927.5,1927.0,4.2814]
[1617274603741,7.7827,1927.4,1927.0,4.4214]
[1617274603941,7.7827,1927.4,1927.2,0.4]
[1617274604143,0.315,1927.5,1927.2,0.4]
[1617274604545,0.47406894,1927.7,1927.2,0.4]
[1617274604546,0.09406894,1927.7,1927.4,0.52879932]
[1617274604743,14.8534,1928.0,1927.6,0.4]
[1617274604744,22.62791,1928.0,1927.6,0.4]